bitfinex-derivatives/quotes_BTCF0:USTF0_20251103
["timestamp","ask_amount","ask_price","bid_price","bid_amount"]
[1762161210740,1.03072988,107880.0,107870.0,0.0624]
[1762161210927,1.00846766,107880.0,107870.0,0.0624]
[1762161211132,1.03072988,107880.0,107870.0,0.0624]
[1762161211332,1.01272988,107880.0,107870.0,0.0584]
[1762161211533,1.02672988,107880.0,107870.0,0.0614]
[1762161211840,1.03572988,107880.0,107870.0,0.03942]
[1762161212842,1.03572988,107880.0,107870.0,0.005]
[1762161213741,1.03572988,107880.0,107870.0,0.01875]
[1762161214138,1.03572988,107880.0,107870.0,0.04014]
[1762161214540,1.03572988,107880.0,107870.0,0.06214]
[1762161215141,1.03572988,107880.0,107870.0,0.005]
[1762161215842,1.03572988,107880.0,107870.0,0.01875]
[1762161216038,1.03572988,107880.0,107870.0,0.005]
[1762161216245,1.03572635,107880.0,107870.0,0.005]
[1762161216444,1.03572635,107880.0,107860.0,0.00305938]
[1762161216746,0.47431043,107870.0,107860.0,0.00305938]
[1762161217045,0.47431043,107870.0,107860.0,0.03819938]
[1762161217644,0.47431043,107870.0,107860.0,0.01680938]
[1762161218148,0.48131043,107870.0,107860.0,0.01780938]
[1762161218644,0.48131043,107870.0,107860.0,0.03919938]
[1762161219041,0.49431043,107870.0,107860.0,0.03919938]
[1762161220747,0.49431043,107870.0,107860.0,0.01780938]
[1762161221142,0.49431043,107870.0,107860.0,0.03919938]
[1762161221340,0.49431043,107870.0,107860.0,0.01780938]
[1762161222048,0.49431043,107870.0,107860.0,0.03919938]
[1762161222453,0.49431043,107870.0,107860.0,0.06131938]
[1762161222748,0.3416,107870.0,107860.0,0.62835741]
[1762161223045,0.3416,107870.0,107860.0,0.67761083]
[1762161223248,0.3416,107870.0,107860.0,0.51484698]
[1762161223549,0.3416,107870.0,107860.0,0.62835741]
[1762161223751,0.3416,107870.0,107860.0,0.51484698]
[1762161224449,0.45511043,107870.0,107860.0,0.06131938]
[1762161225538,0.45511043,107870.0,107860.0,0.15404698]
[1762161225741,0.45511043,107870.0,107860.0,0.06131938]
[1762161226749,0.47738288,107870.0,107860.0,0.06131938]
[1762161226942,0.83818288,107870.0,107860.0,0.06131938]
[1762161227143,0.72467245,107870.0,107860.0,0.06131938]
[1762161227343,0.83818288,107870.0,107860.0,0.06131938]
[1762161229454,0.99208288,107870.0,107860.0,0.06131938]
[1762161229750,0.83818288,107870.0,107860.0,0.06131938]
[1762161231853,0.83818288,107870.0,107860.0,0.03919938]
[1762161232151,0.83818288,107870.0,107860.0,0.04061938]
[1762161232459,0.83818288,107870.0,107860.0,0.01780938]
[1762161233150,0.81591043,107870.0,107860.0,0.0670628]
[1762161233654,0.81591043,107870.0,107860.0,0.0533128]
[1762161233952,0.83820559,107870.0,107860.0,0.00405938]
[1762161234153,0.83820559,107870.0,107850.0,0.06191342]
[1762161234344,0.47431043,107860.0,107850.0,0.06191342]
[1762161235346,0.58782086,107860.0,107850.0,0.05025342]
[1762161236652,0.83262086,107860.0,107850.0,0.01525342]
[1762161237449,0.83262086,107860.0,107850.0,0.001]
[1762161237450,0.83762086,107860.0,107850.0,0.001]
[1762161238252,0.83762086,107860.0,107850.0,0.01385]
[1762161239453,0.83762086,107860.0,107850.0,0.03666]
[1762161239644,0.83762086,107860.0,107850.0,0.01385]
[1762161240448,0.83262086,107860.0,107850.0,0.01985]
[1762161240651,0.83462086,107860.0,107850.0,0.01985]
[1762161241053,0.92442086,107860.0,107850.0,0.01985]
[1762161241248,0.91742086,107860.0,107850.0,0.01985]
[1762161241555,1.1717926,107860.0,107850.0,0.01985]
[1762161241853,1.1717926,107860.0,107840.0,0.01276398]
[1762161242046,0.58782086,107850.0,107840.0,0.01276398]
[1762161242447,0.58782086,107850.0,107830.0,0.01375]
[1762161242448,0.81962086,107850.0,107830.0,0.01375]
[1762161242647,0.90942086,107840.0,107820.0,0.10447155]
[1762161242850,0.58782086,107830.0,107820.0,0.10447155]
[1762161243051,2.08782086,107830.0,107820.0,0.10447155]
[1762161243455,2.08789134,107830.0,107820.0,0.10447155]
[1762161243657,2.08789134,107830.0,107820.0,0.03872051]
[1762161244149,2.16810602,107830.0,107820.0,0.03985725]
[1762161244350,2.16810602,107830.0,107820.0,0.06197725]
[1762161244550,2.05459559,107830.0,107820.0,0.06197725]
[1762161244751,2.37619559,107830.0,107820.0,0.06211068]
[1762161244953,2.38919559,107830.0,107820.0,0.06211068]
[1762161245150,2.38919559,107830.0,107820.0,0.12786172]
[1762161245854,2.38919559,107830.0,107820.0,0.06211068]
[1762161246648,2.50270602,107830.0,107820.0,0.01718068]
[1762161248052,2.50270602,107830.0,107820.0,0.00433068]
[1762161248359,2.41781959,107830.0,107820.0,0.00433068]
[1762161249061,2.41781959,107830.0,107820.0,0.01718068]
[1762161250353,2.41781959,107830.0,107820.0,0.03999068]
[1762161250554,2.41785959,107830.0,107820.0,0.06267885]
[1762161251064,2.41778911,107830.0,107820.0,0.00546702]
[1762161251755,2.64962911,107830.0,107810.0,0.01285]
[1762161251955,0.50303816,107820.0,107800.0,0.10141104]
[1762161252157,0.82457443,107810.0,107800.0,0.12360104]
[1762161252359,0.82468787,107810.0,107800.0,0.03566]
[1762161252559,0.82468787,107810.0,107800.0,0.07860104]
[1762161252753,0.82468787,107810.0,107800.0,0.01285]
[1762161252958,0.82468787,107810.0,107800.0,0.03582]
[1762161253866,0.98458787,107810.0,107800.0,0.03582]
[1762161254462,0.98458787,107810.0,107800.0,0.01285]
[1762161254762,0.99758787,107810.0,107800.0,0.01285]
[1762161255154,0.99758787,107810.0,107800.0,0.03582]
[1762161255563,0.99758787,107810.0,107800.0,0.05801]
[1762161255763,0.99758787,107810.0,107800.0,0.01285]
[1762161255962,0.99758787,107810.0,107800.0,0.05801]
[1762161256160,1.04511502,107810.0,107800.0,0.05801]
[1762161257264,1.02012297,107810.0,107800.0,0.05801]
[1762161258270,1.02012297,107810.0,107800.0,0.01285]
[1762161258469,1.16214396,107810.0,107790.0,0.03582]
[1762161258666,0.64517073,107800.0,107790.0,0.05801]
[1762161258971,0.5255714,107800.0,107790.0,0.05801]
[1762161259767,0.5030363,107800.0,107790.0,0.05801]
[1762161259969,0.53049837,107800.0,107790.0,0.05801]
[1762161261159,0.37590187,107800.0,107790.0,0.05801]
[1762161261469,0.39834851,107800.0,107790.0,0.05801]
[1762161261661,0.54048294,107800.0,107790.0,0.05801]
[1762161261861,0.39834851,107800.0,107790.0,0.05801]
[1762161262062,0.5180363,107800.0,107790.0,0.05801]
[1762161262565,0.54047844,107800.0,107790.0,0.05801]
[1762161262763,0.5180363,107800.0,107790.0,0.05801]
[1762161263159,0.5404748,107800.0,107790.0,0.05801]
[1762161263558,0.5180363,107800.0,107790.0,0.05801]
[1762161264472,0.1572363,107800.0,107790.0,0.1507979]
[1762161264667,0.01510187,107800.0,107790.0,0.5115979]
[1762161264857,0.01510187,107800.0,107790.0,0.88565233]
[1762161265062,0.5127218,107820.0,107810.0,0.05878]
[1762161265261,0.85683661,107820.0,107810.0,0.05878]
[1762161265558,2.35683661,107820.0,107810.0,0.05878]
[1762161266358,2.36683661,107820.0,107810.0,0.05878]
[1762161266564,2.37483661,107820.0,107810.0,0.05878]
[1762161267165,2.39982866,107820.0,107810.0,0.05878]
[1762161267971,2.37483661,107820.0,107810.0,0.05878]
[1762161268169,2.39982866,107820.0,107810.0,0.05878]
[1762161268366,2.48511391,107820.0,107810.0,0.05878]
[1762161269274,2.59882375,107820.0,107810.0,0.05878]
[1762161271373,2.59882375,107820.0,107800.0,0.05595]
[1762161271571,0.58821968,107810.0,107800.0,0.05595]
[1762161271875,0.61065449,107810.0,107800.0,0.05595]
[1762161272071,0.61065449,107810.0,107800.0,0.1487295]
[1762161272273,0.47450984,107810.0,107800.0,0.1487295]
[1762161272476,0.47450984,107810.0,107800.0,0.05595]
[1762161273072,0.61061899,107810.0,107800.0,0.05595]
[1762161273280,0.41819136,107810.0,107800.0,0.05595]
[1762161273479,0.64561104,107810.0,107800.0,0.05595]
[1762161273871,0.79951104,107810.0,107800.0,0.05595]
[1762161274176,0.64561104,107810.0,107800.0,0.05595]
[1762161275171,0.67876174,107810.0,107800.0,0.05595]
[1762161275983,0.5650519,107810.0,107800.0,0.05595]
[1762161277074,0.54005985,107810.0,107800.0,0.1487294]
[1762161278283,0.56499044,107810.0,107800.0,0.1487294]
[1762161278475,0.09293327,107820.0,107810.0,0.1478307]
[1762161278679,0.33142737,107820.0,107810.0,0.85422054]
[1762161278879,0.00978737,107820.0,107810.0,0.85422054]
[1762161279075,0.15836058,107830.0,107820.0,0.1478221]
[1762161279387,0.43000538,107830.0,107820.0,0.73604178]
[1762161279883,0.3547907,107830.0,107820.0,0.62233194]
[1762161280087,0.16370504,107840.0,107830.0,0.3758635]
[1762161280088,0.01488245,107840.0,107830.0,0.3758635]
[1762161280272,0.0499952,107850.0,107840.0,0.1466649]
[1762161280478,0.0731652,107850.0,107840.0,0.41472]
[1762161280677,0.1093652,107850.0,107840.0,0.5074652]
[1762161280879,0.1093652,107850.0,107840.0,0.41472]
[1762161281083,0.11938562,107850.0,107840.0,0.41472]
[1762161281988,0.11938562,107850.0,107840.0,0.5074649]
[1762161282287,0.07939042,107850.0,107840.0,0.5174649]
[1762161282489,0.07939042,107850.0,107840.0,0.42472]
[1762161282687,0.1292842,107850.0,107840.0,0.42472]
[1762161282889,0.1292842,107850.0,107840.0,0.5174649]
[1762161283188,0.07939042,107850.0,107840.0,0.5174649]
[1762161284184,0.06560042,107850.0,107840.0,0.5174649]
[1762161285402,0.07868042,107850.0,107840.0,0.42472]
[1762161285802,0.06560042,107850.0,107840.0,0.517465]
[1762161288410,0.06560042,107850.0,107840.0,0.42472]
[1762161288907,0.06560042,107850.0,107840.0,0.5174649]
[1762161291505,0.02002042,107850.0,107840.0,0.65941957]
[1762161292706,0.01902042,107850.0,107840.0,0.65341957]
[1762161292912,0.01902042,107850.0,107840.0,0.88521957]
[1762161293309,4.2e-07,107850.0,107840.0,1.20673957]
[1762161293811,0.0471,107870.0,107860.0,0.0927278]
[1762161294000,0.02171947,107870.0,107860.0,0.5055178]
[1762161294201,0.71975,107890.0,107880.0,0.1382606]
[1762161294407,0.40341373,107890.0,107880.0,0.5106506]
[1762161294607,0.47766712,107890.0,107880.0,0.4990606]
[1762161294814,0.47766712,107890.0,107880.0,0.04555]
[1762161295305,0.62162179,107890.0,107880.0,0.04855]
[1762161295505,0.99836371,107890.0,107880.0,0.012]
[1762161295706,0.99836371,107890.0,107880.0,0.05755]
[1762161297206,0.99736371,107890.0,107880.0,0.022]
[1762161297405,0.99736371,107890.0,107880.0,0.06755]
[1762161298001,0.99836371,107890.0,107880.0,0.06755]
[1762161298203,0.99836371,107890.0,107880.0,0.022]
[1762161298813,0.99836371,107890.0,107880.0,0.025]
[1762161300209,0.99836371,107890.0,107880.0,0.027]
[1762161300410,0.99236371,107890.0,107880.0,0.008]
[1762161300623,0.05718,107860.0,107850.0,0.04555]
[1762161300915,0.05718,107860.0,107840.0,0.4599848]
[1762161300916,0.05718,107850.0,107830.0,0.3608]
[1762161301214,0.88161467,107840.0,107830.0,0.01896]
[1762161301416,0.88161467,107840.0,107820.0,0.39872]
[1762161301417,0.05718,107830.0,107820.0,0.39872]
[1762161301815,0.19913467,107830.0,107820.0,0.39872]
[1762161302016,0.19913467,107830.0,107820.0,0.03792]
[1762161302218,0.05718,107820.0,107810.0,0.37976]
[1762161302418,0.52081467,107820.0,107810.0,0.01896]
[1762161302608,0.52081467,107820.0,107810.0,0.03792]
[1762161303412,0.53067524,107820.0,107810.0,0.03792]
[1762161303711,0.05718,107810.0,107800.0,0.4914993]
[1762161304103,0.37882,107810.0,107800.0,0.4914993]
[1762161304308,0.02394057,107820.0,107810.0,0.111731]
[1762161304509,0.39000057,107820.0,107810.0,0.491491]
[1762161304807,0.39600057,107820.0,107810.0,0.491491]
[1762161305312,0.39500057,107820.0,107810.0,0.491491]
[1762161305514,0.40100057,107820.0,107810.0,0.39872]
[1762161306014,0.40400057,107820.0,107810.0,0.39872]
[1762161307008,0.39200057,107820.0,107810.0,0.39872]
[1762161307209,0.39900057,107820.0,107810.0,0.491491]
[1762161307515,0.39900057,107820.0,107810.0,0.39872]
[1762161307811,0.39900057,107820.0,107810.0,0.491491]
[1762161308008,0.39900057,107820.0,107810.0,0.39872]
[1762161308618,0.07704057,107820.0,107810.0,0.491491]
[1762161308807,0.06718,107820.0,107810.0,0.491491]
[1762161309009,0.01963089,107820.0,107810.0,0.500431]
[1762161309315,0.03135,107820.0,107810.0,0.491491]
[1762161309615,0.02835,107820.0,107810.0,0.491491]
[1762161309813,0.0531,107820.0,107810.0,0.491491]
[1762161310019,0.05918,107820.0,107810.0,0.39872]
[1762161310217,0.05918,107820.0,107810.0,0.03892]
[1762161310218,0.06618,107820.0,107810.0,0.03892]
[1762161310918,0.06918,107820.0,107810.0,0.03892]
[1762161311212,0.07882614,107820.0,107810.0,0.03892]
[1762161311418,0.07882614,107820.0,107810.0,0.1316907]
[1762161311918,0.07682614,107820.0,107810.0,0.1316907]
[1762161312119,0.08082614,107820.0,107810.0,0.1316907]
[1762161313118,0.1023944,107820.0,107810.0,0.1316907]
[1762161313418,0.08082614,107820.0,107810.0,0.1316907]
[1762161313714,0.08082614,107820.0,107810.0,0.03892]
[1762161313920,0.08082614,107820.0,107810.0,0.1316908]
[1762161314821,0.08082614,107820.0,107810.0,0.4924908]
[1762161317719,0.08082614,107820.0,107810.0,0.39972]
[1762161317921,0.08082614,107820.0,107810.0,0.4924914]
[1762161318224,0.08082614,107820.0,107810.0,0.03892]
[1762161318421,0.08082614,107820.0,107810.0,0.39972]
[1762161319121,0.44162614,107820.0,107810.0,0.03892]
[1762161320920,0.67977855,107820.0,107810.0,0.001]
[1762161321625,0.44162614,107820.0,107810.0,0.001]
[1762161322418,0.67977855,107820.0,107810.0,0.001]
[1762161322627,0.05708,107800.0,107790.0,0.39872]
[1762161322826,0.37872,107800.0,107790.0,0.39872]
[1762161323929,0.38272,107800.0,107790.0,0.40072]
[1762161324830,0.38272,107800.0,107790.0,0.4935081]
[1762161325128,0.38372,107800.0,107790.0,0.4935081]
[1762161325332,0.3838,107800.0,107790.0,0.4935081]
[1762161325631,0.005,107800.0,107790.0,0.73166051]
[1762161327127,0.02752,107800.0,107790.0,0.4935081]
[1762161327327,0.06406,107800.0,107790.0,0.4935081]
[1762161328631,0.005,107800.0,107790.0,0.4935081]
[1762161328934,0.0019148,107800.0,107790.0,1.01297462]
[1762161329129,0.0019148,107800.0,107790.0,0.77482221]
[1762161329322,0.0019148,107800.0,107790.0,1.01297462]
[1762161330936,0.0019148,107800.0,107790.0,0.78105462]
[1762161332136,0.0019148,107800.0,107790.0,0.54290221]
[1762161333231,0.0019148,107800.0,107790.0,0.73166051]
[1762161334333,0.0244348,107800.0,107790.0,0.4935081]
[1762161334534,0.0244348,107800.0,107790.0,0.8151881]
[1762161335835,0.0609748,107800.0,107790.0,0.8151881]
[1762161336132,0.0609748,107800.0,107790.0,0.86471565]
[1762161336529,0.0609748,107800.0,107790.0,0.86463565]
[1762161339740,0.0609748,107800.0,107790.0,0.54303565]
[1762161342046,0.0609748,107800.0,107790.0,0.4935081]
[1762161342638,0.0609748,107800.0,107790.0,0.55925914]
[1762161347745,0.0609748,107800.0,107790.0,0.55925904]
[1762161349245,0.0609748,107800.0,107790.0,0.5431273]
[1762161353547,0.0609748,107800.0,107790.0,0.65682332]
[1762161357947,0.0609748,107800.0,107790.0,0.56403532]
[1762161358351,0.0609748,107800.0,107790.0,0.65682332]
[1762161358746,0.0609748,107800.0,107790.0,0.5431273]
[1762161359446,0.0019148,107800.0,107790.0,0.72090004]
[1762161359849,0.0019148,107800.0,107790.0,1.04250004]
[1762161360049,0.0019148,107800.0,107790.0,1.10825108]
[1762161360955,0.0019148,107800.0,107790.0,0.92880402]
[1762161361854,0.0019148,107800.0,107790.0,0.99455506]
[1762161362253,0.0019148,107800.0,107790.0,0.92880402]
[1762161363457,0.0019148,107800.0,107790.0,0.97842083]
[1762161364859,0.0019148,107800.0,107790.0,0.92880402]
[1762161365055,0.0019148,107800.0,107790.0,0.90880402]
[1762161365666,0.0019148,107800.0,107790.0,0.795108]
[1762161365868,0.0019148,107800.0,107790.0,0.90880402]
[1762161366868,0.0456348,107800.0,107790.0,0.95842032]
[1762161367260,0.0229848,107800.0,107790.0,0.95842032]
[1762161367464,0.0019148,107800.0,107790.0,0.95842032]
[1762161368369,0.0019148,107800.0,107790.0,0.95840605]
[1762161370063,0.0587748,107800.0,107790.0,0.90878975]
[1762161370265,0.0019148,107800.0,107790.0,0.95839677]
[1762161370573,0.0456348,107800.0,107790.0,0.95839677]
[1762161370772,0.0456348,107800.0,107790.0,0.90878975]
[1762161371072,0.0456348,107800.0,107790.0,0.88878975]
[1762161371773,0.0456348,107800.0,107790.0,0.775108]
[1762161372073,0.0019148,107800.0,107790.0,0.88878975]
[1762161372274,0.0468148,107800.0,107790.0,0.775108]
[1762161372465,0.0468148,107800.0,107790.0,0.9383924]
[1762161372667,0.0468148,107800.0,107790.0,0.6167924]
[1762161372863,0.17428655,107800.0,107790.0,0.6167924]
[1762161373265,0.0468148,107800.0,107790.0,0.63294079]
[1762161373475,0.0606048,107800.0,107790.0,0.63294079]
[1762161373676,0.17428655,107800.0,107790.0,0.4535083]
[1762161373974,0.17428655,107800.0,107790.0,0.56719005]
[1762161374772,0.0606048,107800.0,107790.0,0.56719005]
[1762161377078,0.0606048,107800.0,107790.0,0.4535083]
[1762161377279,0.17428655,107800.0,107790.0,0.56719005]
[1762161377473,0.0606048,107800.0,107790.0,0.56719005]
[1762161377673,0.17428655,107800.0,107790.0,0.56719005]
[1762161378778,0.49584655,107800.0,107790.0,0.56719005]
[1762161380079,0.0019148,107800.0,107790.0,0.56719005]
[1762161380477,0.0019148,107800.0,107790.0,1.06818284]
[1762161381082,0.0019148,107800.0,107790.0,0.95450109]
[1762161381283,0.0248848,107800.0,107790.0,0.95450109]
[1762161381578,0.17428655,107800.0,107790.0,0.95450109]
[1762161382071,0.17428655,107800.0,107790.0,0.84081934]
[1762161382579,0.17428655,107800.0,107790.0,0.63294109]
[1762161383170,0.17428655,107800.0,107790.0,0.54015279]
[1762161383983,0.6095283,107800.0,107790.0,0.36072]
[1762161384572,0.6095283,107800.0,107790.0,0.05163679]
[1762161384573,1.08401005,107800.0,107790.0,0.05163679]
[1762161384878,0.9703283,107800.0,107790.0,0.05163679]
[1762161385481,0.99197278,107800.0,107790.0,0.05163679]
[1762161385981,0.99097278,107800.0,107790.0,0.05163679]
[1762161386177,0.99297278,107800.0,107790.0,0.05163679]
[1762161386579,0.99705798,107800.0,107790.0,0.05163679]
[1762161387376,0.99705798,107800.0,107790.0,0.002]
[1762161391683,0.9754135,107800.0,107790.0,0.002]
[1762161392584,0.05742,107790.0,107780.0,0.30309799]
[1762161392781,0.53190175,107790.0,107780.0,0.18941624]
[1762161392983,0.53190175,107790.0,107780.0,0.30309799]
[1762161393187,0.53190175,107790.0,107780.0,0.21030019]
[1762161393487,0.53190175,107790.0,107780.0,0.2113572]
[1762161393687,0.53290175,107790.0,107780.0,0.09767545]
[1762161393878,0.53690175,107790.0,107780.0,0.10108187]
[1762161394379,0.53690175,107790.0,107780.0,0.05716187]
[1762161394380,0.60930938,107790.0,107780.0,0.05716187]
[1762161395174,0.60930938,107790.0,107780.0,0.10108187]
[1762161396491,0.49562763,107790.0,107780.0,0.10108187]
[1762161396787,0.60930938,107790.0,107780.0,0.19387857]
[1762161396983,0.81718763,107790.0,107780.0,0.19387857]
[1762161397188,0.45638763,107790.0,107780.0,0.30756032]
[1762161397485,0.57006938,107790.0,107780.0,0.30756032]
[1762161397880,0.57006938,107790.0,107780.0,0.10108187]
[1762161398080,0.57006938,107790.0,107780.0,0.21476362]
[1762161398280,0.57006938,107790.0,107780.0,0.10108187]
[1762161399292,0.57006938,107790.0,107780.0,0.19387877]
[1762161400790,0.57006938,107790.0,107780.0,0.10108187]
[1762161401088,0.57006938,107790.0,107780.0,0.19387877]
[1762161401880,0.57006938,107790.0,107780.0,0.10108187]
[1762161402777,0.24850938,107790.0,107780.0,0.10108187]
[1762161403183,0.57006938,107790.0,107780.0,0.19387867]
[1762161403689,0.24850938,107790.0,107780.0,0.19387867]
[1762161403891,0.57006938,107790.0,107780.0,0.19387867]
[1762161404388,0.24850938,107790.0,107780.0,0.19387867]
[1762161404686,0.57006938,107790.0,107780.0,0.10108187]
[1762161404888,0.57006938,107790.0,107780.0,0.19387877]
[1762161405287,0.57006938,107790.0,107780.0,0.07912187]
[1762161405483,0.57006938,107790.0,107780.0,0.10040187]
[1762161406288,0.57006938,107790.0,107780.0,0.19319847]
[1762161407788,0.57006938,107790.0,107780.0,0.30688022]
[1762161409092,0.04917,107790.0,107780.0,0.73172518]
[1762161409295,0.32656,107790.0,107780.0,0.73631518]
[1762161409493,0.005,107790.0,107780.0,0.80206622]
[1762161409890,0.005,107790.0,107780.0,1.46926797]
[1762161410097,0.37948,107810.0,107800.0,0.1360195]
[1762161410289,0.37948,107810.0,107800.0,0.4968195]
[1762161410491,0.37948,107810.0,107800.0,0.79031527]
[1762161410993,0.37948,107810.0,107800.0,0.7917787]
[1762161411189,0.38848,107810.0,107800.0,0.72664643]
[1762161411595,0.50216175,107810.0,107800.0,0.56977098]
[1762161411799,0.50516175,107810.0,107800.0,0.56977098]
[1762161412000,0.50516175,107810.0,107800.0,0.20897098]
[1762161412300,0.50516175,107810.0,107800.0,0.30175058]
[1762161412695,0.50516175,107810.0,107800.0,0.66255058]
[1762161413501,0.52710609,107810.0,107800.0,0.61296478]
[1762161414401,0.53523609,107810.0,107800.0,0.61296478]
[1762161414995,0.53523609,107810.0,107800.0,0.52018518]
[1762161415192,0.53523609,107810.0,107800.0,0.15938518]
[1762161415397,0.42155434,107810.0,107800.0,0.04570343]
[1762161415593,0.53523609,107810.0,107800.0,0.04570343]
[1762161417108,0.53523609,107810.0,107800.0,0.02442343]
[1762161417905,0.89603609,107810.0,107800.0,0.00246343]
[1762161418501,1.00971784,107810.0,107800.0,0.00246343]
[1762161420105,1.00971784,107810.0,107800.0,3.43e-06]
[1762161420405,1.0347317,107810.0,107800.0,3.43e-06]
[1762161421908,0.05792,107790.0,107780.0,0.00306165]
[1762161422108,0.3794,107790.0,107780.0,0.04647165]
[1762161422310,0.3794,107790.0,107780.0,0.3025359]
[1762161422504,0.3794,107790.0,107780.0,0.77701765]
[1762161423007,0.3804,107790.0,107780.0,0.77701765]
[1762161423405,0.3804,107790.0,107780.0,0.67988237]
[1762161423904,0.3804,107790.0,107780.0,0.20540062]
[1762161424104,0.49408175,107790.0,107780.0,0.1601534]
[1762161424509,0.49408175,107790.0,107780.0,0.04647165]
[1762161424710,0.49808175,107790.0,107780.0,0.09907088]
[1762161424910,0.49808175,107790.0,107780.0,0.19186758]
[1762161425415,0.49808175,107790.0,107780.0,0.30554983]
[1762161425712,0.49808175,107790.0,107780.0,0.2559506]
[1762161426010,0.3844,107790.0,107780.0,0.2559506]
[1762161426212,0.3844,107790.0,107780.0,0.6167506]
[1762161426412,0.3844,107790.0,107780.0,0.68288287]
[1762161426998,0.3844,107790.0,107780.0,0.56920112]
[1762161427412,0.49808175,107790.0,107780.0,0.5239534]
[1762161427807,0.49808175,107790.0,107780.0,0.04947165]
[1762161428311,0.47538772,107790.0,107780.0,0.04947165]
[1762161428508,0.47538772,107790.0,107780.0,0.02819165]
[1762161428710,0.47538772,107790.0,107780.0,0.05566867]
[1762161429311,0.47538772,107790.0,107780.0,0.07779867]
[1762161431110,0.55109774,107790.0,107780.0,0.07779867]
[1762161432113,0.47538772,107790.0,107780.0,0.07779867]
[1762161433020,0.47538772,107790.0,107780.0,0.05566867]
[1762161433420,0.83618772,107790.0,107780.0,0.05566867]
[1762161433922,0.92717544,107790.0,107780.0,0.05566867]
[1762161434117,0.83618772,107790.0,107780.0,0.05566867]
[1762161434419,0.92717544,107790.0,107780.0,0.05566867]
[1762161435529,0.83618772,107790.0,107780.0,0.05566867]
[1762161435823,0.45954601,107790.0,107780.0,0.19102537]
[1762161436021,0.45954601,107790.0,107780.0,0.09822867]
[1762161436218,0.55053373,107790.0,107780.0,0.09822867]
[1762161438022,0.91133373,107790.0,107780.0,0.09822867]
[1762161438231,0.82034601,107790.0,107780.0,0.19102537]
[1762161438415,0.37135,107790.0,107780.0,0.60164607]
[1762161438620,0.005,107790.0,107780.0,0.66777834]
[1762161439329,0.04853,107790.0,107780.0,0.66777834]
[1762161440224,0.05665,107790.0,107780.0,0.66777834]
[1762161441615,0.0344,107790.0,107780.0,0.66777834]
[1762161441822,0.0344,107790.0,107780.0,0.98925834]
[1762161442320,0.0344,107790.0,107780.0,0.99039286]
[1762161442620,0.01312,107790.0,107780.0,0.99039286]
[1762161443422,0.01312,107790.0,107780.0,1.22235286]
[1762161443624,0.3781,107810.0,107800.0,0.1234994]
[1762161443825,0.05662,107810.0,107800.0,0.53391966]
[1762161444020,0.05662,107810.0,107800.0,0.62490738]
[1762161444221,0.05662,107810.0,107800.0,0.6260419]
[1762161444622,0.05662,107810.0,107800.0,0.53505418]
[1762161444829,0.05662,107810.0,107800.0,0.6260419]
[1762161445134,0.06562,107810.0,107800.0,0.6300419]
[1762161449132,0.06562,107810.0,107800.0,0.5372625]
[1762161449336,0.06562,107810.0,107800.0,0.53905418]
[1762161451939,0.06562,107810.0,107800.0,0.39665452]
[1762161451940,0.15660772,107810.0,107800.0,0.39665452]
[1762161452240,0.15660772,107810.0,107800.0,0.44627478]
[1762161452740,0.15660772,107810.0,107800.0,0.39665452]
[1762161453437,0.17833505,107810.0,107800.0,0.39665452]
[1762161453741,0.53913505,107810.0,107800.0,0.03585452]
[1762161454539,0.44814733,107810.0,107800.0,0.03585452]
[1762161454839,0.53913505,107810.0,107800.0,0.03585452]
[1762161457538,0.54893505,107810.0,107800.0,0.03585452]
[1762161457934,0.54893505,107810.0,107800.0,0.12863402]
[1762161458335,0.45794733,107810.0,107800.0,0.03585452]
[1762161458634,0.54893505,107810.0,107800.0,0.03585452]
[1762161459741,0.54893505,107810.0,107800.0,0.12863402]
[1762161460335,0.54893505,107810.0,107800.0,0.03585452]
[1762161460939,0.54893505,107810.0,107800.0,0.02455452]
[1762161461139,0.54893505,107810.0,107800.0,0.00513452]
[1762161462539,0.54893505,107810.0,107800.0,4.52e-06]
[1762161462743,0.05822,107790.0,107780.0,0.08556191]
[1762161462939,0.37962,107790.0,107780.0,0.17835851]
[1762161463141,0.37962,107790.0,107780.0,0.53915851]
[1762161463344,0.37962,107790.0,107780.0,0.5556986]
[1762161463541,0.37962,107790.0,107780.0,0.64668632]
[1762161463942,0.38362,107790.0,107780.0,0.65268632]
[1762161464248,0.38462,107790.0,107780.0,0.65268632]
[1762161464943,0.06322,107790.0,107780.0,0.65268632]
[1762161465245,0.38462,107790.0,107780.0,0.5616986]
[1762161465446,0.38462,107790.0,107780.0,0.65268632]
[1762161471649,0.0269,107790.0,107780.0,0.65268632]
[1762161472051,0.04963,107790.0,107780.0,0.5616986]
[1762161472347,0.06322,107790.0,107780.0,0.5616986]
[1762161472548,0.06322,107790.0,107780.0,0.65268632]
[1762161474751,0.06322,107790.0,107780.0,0.58652597]
[1762161475747,0.06322,107790.0,107780.0,0.63613915]
[1762161477256,0.06322,107790.0,107780.0,0.54515143]
[1762161477555,0.06322,107790.0,107780.0,0.63613915]
[1762161479456,0.06322,107790.0,107780.0,0.54515143]
[1762161479657,0.06322,107790.0,107780.0,0.63613915]
[1762161480357,0.06322,107790.0,107780.0,0.54515143]
[1762161480657,0.06322,107790.0,107780.0,0.63613915]
[1762161481250,0.06322,107790.0,107780.0,0.58652597]
[1762161482251,0.06322,107790.0,107780.0,0.54515501]
[1762161482950,0.06322,107790.0,107780.0,0.63614273]
[1762161483454,0.06322,107790.0,107780.0,0.54334613]
[1762161483654,0.17584286,107790.0,107780.0,0.54515511]
[1762161483856,0.15420772,107790.0,107780.0,0.54515511]
[1762161484055,0.15420772,107790.0,107780.0,0.45235841]
[1762161484558,0.15420772,107790.0,107780.0,0.54515501]
[1762161484857,0.15420772,107790.0,107780.0,0.45235841]
[1762161485556,0.17584195,107790.0,107780.0,0.45235841]
[1762161486860,0.15420772,107790.0,107780.0,0.45235841]
[1762161489260,0.15420772,107790.0,107780.0,0.54515511]
[1762161489460,0.15420772,107790.0,107780.0,0.45235841]
[1762161489662,0.17584278,107790.0,107780.0,0.45235841]
[1762161489863,0.17584278,107790.0,107780.0,0.36986165]
[1762161490160,0.53664278,107790.0,107780.0,0.00906165]
[1762161490465,0.53666294,107790.0,107780.0,0.00906165]
[1762161490866,0.61268482,107790.0,107780.0,0.00906165]
[1762161491067,0.61268482,107790.0,107780.0,0.02550165]
[1762161491267,0.93404482,107790.0,107780.0,0.04194165]
[1762161492267,2.43404482,107790.0,107780.0,0.04194165]
[1762161492566,2.43404482,107790.0,107780.0,0.00906165]
[1762161493168,2.34303694,107790.0,107780.0,0.04194165]
[1762161493367,2.41240976,107790.0,107780.0,0.04194165]
[1762161493867,2.43403958,107790.0,107780.0,0.00906165]
[1762161494164,2.41240976,107790.0,107780.0,0.00906165]
[1762161494467,0.91240976,107790.0,107780.0,0.00906165]